[Event "NJSK 2023 Meisjes B"]
[Site "Almelo, Netherlands"]
[Date "2023.05.03"]
[Round "4.5"]
[White "Ganeshram, Nirupa"]
[Black "De Bruijne, Marlies"]
[Result "1-0"]
[TimeControl "90min/40moves + 30min + 30sec/move"]
[WhiteElo "1629"]
[BlackElo "945"]

1. e4 {[%clk 01:30:58]} c5 {[%clk 01:30:55]} {[%emt 00:00:06]} 2. Nf3 {[%clk
01:31:25]} {[%emt 00:00:03]} e6 {[%clk 01:31:17]} {[%emt 00:00:09]} 3. d4
{[%clk 01:31:48]} {[%emt 00:00:07]} d5 {[%clk 01:30:22]} {[%emt 00:01:25]} 4.
exd5 {[%clk 01:31:14]} {[%emt 00:01:04]} exd5 {[%clk 01:29:41]} {[%emt
00:01:11]} 5. Nc3 {[%clk 01:30:46]} {[%emt 00:00:57]} Nc6 {[%clk 01:28:01]}
{[%emt 00:02:10]} 6. dxc5 {[%clk 01:30:10]} {[%emt 00:01:06]} Nf6 {[%clk
01:25:19]} {[%emt 00:03:12]} 7. Be3 {[%clk 01:22:58]} {[%emt 00:07:42]} Bg4
{[%clk 01:23:10]} {[%emt 00:02:38]} 8. Be2 {[%clk 01:18:50]} {[%emt 00:04:38]}
Be7 {[%clk 01:16:42]} {[%emt 00:06:58]} 9. h3 {[%clk 01:15:47]} {[%emt
00:03:33]} Be6 {[%clk 01:13:50]} {[%emt 00:03:23]} 10. Qd2 {[%clk 01:13:04]}
{[%emt 00:03:14]} Ne4 {[%clk 01:10:11]} {[%emt 00:04:09]} 11. Nxe4 {[%clk
01:10:20]} {[%emt 00:03:14]} dxe4 {[%clk 01:10:16]} {[%emt 00:00:24]} 12. Qxd8+
{[%clk 01:10:19]} {[%emt 00:00:30]} Rxd8 {[%clk 01:10:22]} {[%emt 00:00:25]} 13.
Nd2 {[%clk 01:10:11]} {[%emt 00:00:39]} Bf5 {[%clk 01:04:46]} {[%emt 00:06:06]}
14. O-O-O {[%clk 01:08:35]} {[%emt 00:02:05]} O-O {[%clk 01:04:49]} {[%emt
00:00:27]} 15. g4 {[%clk 01:07:51]} {[%emt 00:01:15]} Be6 {[%clk 01:01:52]}
{[%emt 00:03:27]} 16. Nxe4 {[%clk 01:03:58]} {[%emt 00:04:22]} Bxa2 {[%clk
01:01:18]} {[%emt 00:01:05]} 17. b3 {[%clk 01:03:18]} {[%emt 00:01:09]} Na5
{[%clk 00:57:36]} {[%emt 00:04:12]} 18. Kb2 {[%clk 01:02:33]} {[%emt 00:01:16]}
Bxb3 {[%clk 00:55:52]} {[%emt 00:02:13]} 19. cxb3 {[%clk 01:02:51]} {[%emt
00:00:11]} Rb8 {[%clk 00:53:56]} {[%emt 00:02:26]} 20. Bf4 {[%clk 01:01:05]}
{[%emt 00:02:16]} Rbc8 {[%clk 00:52:46]} {[%emt 00:01:40]} 21. Bd6 {[%clk
00:59:39]} {[%emt 00:01:55]} Rce8 {[%clk 00:49:45]} {[%emt 00:03:31]} 22. Bb5
{[%clk 00:56:16]} {[%emt 00:03:54]} Nc6 {[%clk 00:45:16]} {[%emt 00:04:59]} 23.
Rhe1 {[%clk 00:54:29]} {[%emt 00:02:16]} Bxd6 {[%clk 00:41:21]} {[%emt
00:04:26]} 24. cxd6 {[%clk 00:54:27]} {[%emt 00:00:32]} a6 {[%clk 00:39:52]}
{[%emt 00:01:59]} 25. Bxc6 {[%clk 00:54:45]} {[%emt 00:00:11]} bxc6 {[%clk
00:40:07]} {[%emt 00:00:15]} 26. d7 {[%clk 00:54:12]} {[%emt 00:01:02]} Rd8
{[%clk 00:38:57]} {[%emt 00:01:40]} 27. Nc5 {[%clk 00:54:15]} {[%emt 00:00:28]}
h6 {[%clk 00:38:19]} {[%emt 00:01:08]} 28. Nb7 {[%clk 00:54:32]} {[%emt
00:00:12]} Rb8 {[%clk 00:37:38]} {[%emt 00:01:11]} 29. d8=Q {[%clk 00:54:39]}
{[%emt 00:00:23]} Rfxd8 {[%clk 00:37:22]} {[%emt 00:00:46]} 30. Rxd8+ {[%clk
00:55:01]} {[%emt 00:00:08]} Rxd8 {[%clk 00:37:47]} {[%emt 00:00:06]} 31. Nxd8
{[%clk 00:55:25]} {[%emt 00:00:06]} c5 {[%clk 00:37:45]} {[%emt 00:00:31]} 32.
Kc3 {[%clk 00:55:47]} {[%emt 00:00:08]} Kh7 {[%clk 00:38:06]} {[%emt 00:00:09]}
33. Nxf7 {[%clk 00:56:06]} {[%emt 00:00:11]} c4 {[%clk 00:38:17]} {[%emt
00:00:19]} 34. h4 {[%clk 00:56:18]} {[%emt 00:00:18]} Kg6 {[%clk 00:38:17]}
{[%emt 00:00:30]} 35. Ne5+ {[%clk 00:56:40]} {[%emt 00:00:08]} Kf6 {[%clk
00:38:25]} {[%emt 00:00:22]} 36. Nxc4 {[%clk 00:56:55]} {[%emt 00:00:15]} a5
{[%clk 00:38:17]} {[%emt 00:00:38]} 37. f4 {[%clk 00:57:18]} {[%emt 00:00:06]}
g5 {[%clk 00:38:11]} {[%emt 00:00:36]} 38. fxg5+ {[%clk 00:57:36]} {[%emt
00:00:12]} hxg5 {[%clk 00:38:36]} {[%emt 00:00:05]} 39. h5 {[%clk 00:57:59]}
{[%emt 00:00:07]} a4 {[%clk 00:38:46]} {[%emt 00:00:20]} 40. Kd4 {[%clk
00:58:00]} {[%emt 00:00:29]} axb3 {[%clk 00:38:52]} {[%emt 00:00:25]} 41. Kd5
{[%clk 00:58:23]} {[%emt 00:00:07]} b2 {[%clk 00:38:35]} {[%emt 00:00:47]} 42.
Nxb2 {[%clk 00:58:33]} {[%emt 00:00:20]} Kg7 {[%clk 00:38:23]} {[%emt
00:00:42]} 43. Rf1 {[%clk 00:58:53]} {[%emt 00:00:10]} Kh7 {[%clk 00:37:49]}
{[%emt 00:01:03]} 44. Rf6 {[%clk 00:59:00]} {[%emt 00:00:23]} Kg7 {[%clk
00:38:00]} {[%emt 00:00:19]} 45. Ke6 {[%clk 00:59:26]} {[%emt 00:00:05]} Kh7
{[%clk 00:38:00]} {[%emt 00:00:30]} 46. Rg6 {[%clk 00:59:51]} {[%emt 00:00:05]}
Kh8 {[%clk 00:37:11]} {[%emt 00:01:19]} 47. Kf6 {[%clk 01:00:17]} {[%emt
00:00:03]} Kh7 {[%clk 00:37:29]} {[%emt 00:00:12]} 48. Kf7 {[%clk 01:00:44]}
{[%emt 00:00:03]} Kh8 {[%clk 00:37:45]} {[%emt 00:00:13]} 49. Rh6+ {[%clk
01:01:09]} {[%emt 00:00:04]} 1-0

[Event "NJSK 2023 Meisjes B"]
[Site "Almelo, Netherlands"]
[Date "2023.05.03"]
[Round "4.6"]
[White "Zahirna, Iryna"]
[Black "Wortman, Manixia"]
[Result "1/2-1/2"]
[TimeControl "90min/40moves + 30min + 30sec/move"]
[WhiteElo "1594"]
[BlackElo "1493"]

1. c4 {[%clk 01:30:58]} {[%emt 00:00:02]} Nf6 {[%clk 01:30:50]} {[%emt
00:00:10]} 2. Nf3 {[%clk 01:31:05]} {[%emt 00:00:23]} e6 {[%clk 01:31:02]}
{[%emt 00:00:18]} 3. Nc3 {[%clk 01:30:38]} {[%emt 00:00:57]} Bb4 {[%clk
01:29:44]} {[%emt 00:01:48]} 4. g3 {[%clk 01:27:43]} {[%emt 00:03:25]} b6
{[%clk 01:27:46]} {[%emt 00:02:27]} 5. Bg2 {[%clk 01:23:19]} {[%emt 00:04:54]}
Bb7 {[%clk 01:27:49]} {[%emt 00:00:27]} 6. a3 {[%clk 01:22:49]} {[%emt
00:01:00]} Bxc3 {[%clk 01:22:48]} {[%emt 00:05:31]} 7. bxc3 {[%clk 01:23:06]}
{[%emt 00:00:14]} d6 {[%clk 01:22:54]} {[%emt 00:00:23]} 8. d4 {[%clk
01:17:52]} {[%emt 00:05:44]} Nbd7 {[%clk 01:18:31]} {[%emt 00:04:53]} 9. O-O
{[%clk 01:11:20]} {[%emt 00:07:02]} O-O {[%clk 01:18:28]} {[%emt 00:00:33]} 10.
Re1 {[%clk 01:08:51]} {[%emt 00:02:59]} c5 {[%clk 01:15:58]} {[%emt 00:03:00]}
11. Bf4 {[%clk 01:05:20]} {[%emt 00:04:01]} Qe7 {[%clk 01:05:02]} {[%emt
00:11:26]} 12. dxc5 {[%clk 01:05:29]} {[%emt 00:00:22]} e5 {[%clk 00:53:23]}
{[%emt 00:12:08]} 13. cxd6 {[%clk 01:03:32]} {[%emt 00:02:26]} Qe6 {[%clk
00:53:06]} {[%emt 00:00:46]} 14. Nxe5 {[%clk 00:56:29]} {[%emt 00:07:34]} Bxg2
{[%clk 00:51:12]} {[%emt 00:02:24]} 15. Nxd7 {[%clk 00:56:34]} {[%emt
00:00:26]} Nxd7 {[%clk 00:51:13]} {[%emt 00:00:29]} 16. Kxg2 {[%clk 00:56:35]}
{[%emt 00:00:29]} Qxc4 {[%clk 00:51:12]} {[%emt 00:00:31]} 17. Qd4 {[%clk
00:51:32]} {[%emt 00:05:33]} Qc6+ {[%clk 00:46:12]} {[%emt 00:05:30]} 18. Kg1
{[%clk 00:49:54]} {[%emt 00:02:07]} Rfe8 {[%clk 00:44:45]} {[%emt 00:01:57]} 19.
e4 {[%clk 00:43:33]} {[%emt 00:06:52]} Rac8 {[%clk 00:42:42]} {[%emt 00:02:33]}
20. Rac1 {[%clk 00:42:51]} {[%emt 00:01:11]} Qc4 {[%clk 00:34:42]} {[%emt
00:08:30]} 21. e5 {[%clk 00:33:27]} {[%emt 00:09:55]} Qc5 {[%clk 00:26:43]}
{[%emt 00:08:29]} 22. Qxc5 {[%clk 00:19:35]} {[%emt 00:14:22]} Rxc5 {[%clk
00:26:53]} {[%emt 00:00:20]} 23. Kg2 {[%clk 00:16:36]} {[%emt 00:03:29]} Re6
{[%clk 00:21:27]} {[%emt 00:05:56]} 24. Bg5 {[%clk 00:12:17]} {[%emt 00:04:50]}
Rcxe5 {[%clk 00:16:39]} {[%emt 00:05:19]} 25. Rxe5 {[%clk 00:12:05]} {[%emt
00:00:42]} Rxe5 {[%clk 00:16:34]} {[%emt 00:00:34]} 26. Bf4 {[%clk 00:09:29]}
{[%emt 00:03:06]} Re6 {[%clk 00:13:38]} {[%emt 00:03:26]} 27. Rd1 {[%clk
00:06:59]} {[%emt 00:02:59]} Kf8 {[%clk 00:12:42]} {[%emt 00:01:26]} 28. c4
{[%clk 00:06:29]} {[%emt 00:01:00]} Ke8 {[%clk 00:11:37]} {[%emt 00:01:35]} 29.
f3 {[%clk 00:04:14]} {[%emt 00:02:46]} Nc5 {[%clk 00:11:20]} {[%emt 00:00:46]}
30. Kf2 {[%clk 00:03:04]} {[%emt 00:01:41]} Kd7 {[%clk 00:10:58]} {[%emt
00:00:52]} 1/2-1/2

[Event "NJSK 2023 Meisjes B"]
[Site "Almelo, Netherlands"]
[Date "2023.05.03"]
[Round "4.7"]
[White "Knobbe, Elise"]
[Black "Luijkx, Dagmar"]
[Result "1/2-1/2"]
[TimeControl "90min/40moves + 30min + 30sec/move"]
[WhiteElo "1584"]
[BlackElo "1559"]

1. c4 {[%clk 01:30:56]} {[%emt 00:00:03]} Nf6 {[%clk 01:30:56]} {[%emt
00:00:05]} 2. Nc3 {[%clk 01:31:20]} {[%emt 00:00:06]} g6 {[%clk 01:31:17]}
{[%emt 00:00:10]} 3. g3 {[%clk 01:31:40]} {[%emt 00:00:09]} Bg7 {[%clk
01:31:42]} {[%emt 00:00:05]} 4. Bg2 {[%clk 01:32:04]} {[%emt 00:00:05]} d6
{[%clk 01:31:45]} {[%emt 00:00:28]} 5. e4 {[%clk 01:31:31]} {[%emt 00:01:03]}
e5 {[%clk 01:31:41]} {[%emt 00:00:34]} 6. Nge2 {[%clk 01:31:42]} {[%emt
00:00:19]} Nbd7 {[%clk 01:31:28]} {[%emt 00:00:44]} 7. O-O {[%clk 01:31:06]}
{[%emt 00:01:05]} O-O {[%clk 01:31:25]} {[%emt 00:00:34]} 8. d3 {[%clk
01:30:33]} {[%emt 00:01:02]} a5 {[%clk 01:30:35]} {[%emt 00:01:21]} 9. a4
{[%clk 01:27:55]} {[%emt 00:03:08]} Nc5 {[%clk 01:27:36]} {[%emt 00:03:29]} 10.
h3 {[%clk 01:26:06]} {[%emt 00:02:19]} c6 {[%clk 01:26:02]} {[%emt 00:02:04]}
11. Be3 {[%clk 01:23:10]} {[%emt 00:03:26]} Na6 {[%clk 01:18:51]} {[%emt
00:07:41]} 12. Qd2 {[%clk 01:20:07]} {[%emt 00:03:34]} Nb4 {[%clk 01:15:45]}
{[%emt 00:03:36]} 13. Na2 {[%clk 01:17:30]} {[%emt 00:03:07]} Nxa2 {[%clk
01:15:51]} {[%emt 00:00:23]} 14. Rxa2 {[%clk 01:17:53]} {[%emt 00:00:07]} Be6
{[%clk 01:13:48]} {[%emt 00:02:33]} 15. Raa1 {[%clk 01:14:12]} {[%emt
00:04:12]} c5 {[%clk 01:06:43]} {[%emt 00:07:35]} 16. Nc3 {[%clk 01:10:41]}
{[%emt 00:04:01]} Qd7 {[%clk 01:05:40]} {[%emt 00:01:32]} 17. Kh2 {[%clk
01:08:16]} {[%emt 00:02:54]} h5 {[%clk 01:02:33]} {[%emt 00:03:38]} 18. Nd5
{[%clk 01:05:21]} {[%emt 00:03:26]} Bxd5 {[%clk 01:01:28]} {[%emt 00:01:34]} 19.
cxd5 {[%clk 01:03:20]} {[%emt 00:02:31]} b6 {[%clk 00:52:56]} {[%emt 00:09:03]}
20. b3 {[%clk 01:00:01]} {[%emt 00:03:49]} Ne8 {[%clk 00:49:10]} {[%emt
00:04:15]} 21. Bh6 {[%clk 00:51:44]} {[%emt 00:08:48]} b5 {[%clk 00:43:49]}
{[%emt 00:05:52]} 22. Bg5 {[%clk 00:45:16]} {[%emt 00:06:56]} b4 {[%clk
00:41:40]} {[%emt 00:02:39]} 23. Bh6 {[%clk 00:37:40]} {[%emt 00:08:06]} Kh7
{[%clk 00:39:43]} {[%emt 00:02:25]} 24. Bxg7 {[%clk 00:36:12]} {[%emt
00:02:01]} Kxg7 {[%clk 00:39:38]} {[%emt 00:00:23]} 25. f4 {[%clk 00:34:47]}
{[%emt 00:02:08]} Rh8 {[%clk 00:34:36]} {[%emt 00:05:32]} 26. fxe5 {[%clk
00:27:34]} {[%emt 00:07:43]} dxe5 {[%clk 00:34:33]} {[%emt 00:00:32]} 27. Qf2
{[%clk 00:26:15]} {[%emt 00:01:49]} Rc8 {[%clk 00:31:25]} {[%emt 00:03:38]} 28.
h4 {[%clk 00:22:51]} {[%emt 00:03:54]} Qe7 {[%clk 00:28:56]} {[%emt 00:03:00]}
29. Bh3 {[%clk 00:20:26]} {[%emt 00:02:54]} Rc7 {[%clk 00:26:16]} {[%emt
00:03:10]} 30. Qc2 {[%clk 00:18:36]} {[%emt 00:02:20]} Nd6 {[%clk 00:24:52]}
{[%emt 00:01:55]} 31. Qf2 {[%clk 00:16:54]} {[%emt 00:02:12]} 1/2-1/2

[Event "NJSK 2023 Meisjes B"]
[Site "Almelo, Netherlands"]
[Date "2023.05.04"]
[Round "5.1"]
[White "Verheij, Dana"]
[Black "Damen, Josephine"]
[Result "1-0"]
[TimeControl "90min/40moves + 30min + 30sec/move"]
[WhiteElo "1846"]
[BlackElo "1628"]

1. e4 {[%clk 01:30:58]} {[%emt 00:00:02]} e5 {[%clk 01:30:54]} {[%emt
00:00:06]} 2. Bc4 {[%clk 01:31:16]} {[%emt 00:00:12]} Nf6 {[%clk 01:31:17]}
{[%emt 00:00:07]} 3. d4 {[%clk 01:31:29]} {[%emt 00:00:17]} exd4 {[%clk
01:31:35]} {[%emt 00:00:12]} 4. Nf3 {[%clk 01:31:39]} {[%emt 00:00:21]} Nc6
{[%clk 01:31:55]} {[%emt 00:00:10]} 5. O-O {[%clk 01:32:01]} {[%emt 00:00:07]}
Nxe4 {[%clk 01:32:16]} {[%emt 00:00:08]} 6. Re1 {[%clk 01:31:37]} {[%emt
00:00:55]} d5 {[%clk 01:32:25]} {[%emt 00:00:21]} 7. Bxd5 {[%clk 01:32:02]}
{[%emt 00:00:05]} Qxd5 {[%clk 01:32:50]} {[%emt 00:00:04]} 8. Nc3 {[%clk
01:32:28]} {[%emt 00:00:04]} Qa5 {[%clk 01:33:11]} {[%emt 00:00:09]} 9. Nxe4
{[%clk 01:25:49]} {[%emt 00:07:09]} Be6 {[%clk 01:31:46]} {[%emt 00:01:55]} 10.
Bf4 {[%clk 01:19:17]} {[%emt 00:06:59]} O-O-O {[%clk 01:27:26]} {[%emt
00:04:53]} 11. a3 {[%clk 01:17:32]} {[%emt 00:02:15]} h6 {[%clk 01:07:34]}
{[%emt 00:20:22]} 12. Qe2 {[%clk 01:14:01]} {[%emt 00:04:00]} g5 {[%clk
00:57:43]} {[%emt 00:10:21]} 13. b4 {[%clk 01:08:42]} {[%emt 00:05:48]} Qd5
{[%clk 00:52:28]} {[%emt 00:05:46]} 14. Bg3 {[%clk 00:55:21]} {[%emt 00:13:51]}
Bg7 {[%clk 00:45:43]} {[%emt 00:07:16]} 15. Rad1 {[%clk 00:53:08]} {[%emt
00:02:42]} Qc4 {[%clk 00:41:08]} {[%emt 00:05:05]} 16. Qd2 {[%clk 00:38:41]}
{[%emt 00:14:57]} Bf5 {[%clk 00:32:37]} {[%emt 00:09:01]} 17. h4 {[%clk
00:30:12]} {[%emt 00:08:59]} Bxe4 {[%clk 00:15:58]} {[%emt 00:17:09]} 18. Rxe4
{[%clk 00:30:34]} {[%emt 00:00:08]} f5 {[%clk 00:16:13]} {[%emt 00:00:15]} 19.
Ree1 {[%clk 00:28:42]} {[%emt 00:02:22]} f4 {[%clk 00:12:55]} {[%emt 00:03:49]}
20. Bh2 {[%clk 00:28:59]} {[%emt 00:00:12]} g4 {[%clk 00:12:02]} {[%emt
00:01:23]} 21. Qxf4 {[%clk 00:29:04]} {[%emt 00:00:25]} Rd7 {[%clk 00:10:22]}
{[%emt 00:02:09]} 22. Qxg4 {[%clk 00:27:22]} {[%emt 00:02:12]} Qxc2 {[%clk
00:07:52]} {[%emt 00:03:00]} 23. b5 {[%clk 00:25:52]} {[%emt 00:01:59]} h5
{[%clk 00:07:34]} {[%emt 00:00:48]} 24. Qh3 {[%clk 00:23:54]} {[%emt 00:02:28]}
Nb8 {[%clk 00:07:09]} {[%emt 00:00:56]} 25. Rc1 {[%clk 00:23:46]} {[%emt
00:00:37]} Qg6 {[%clk 00:05:16]} {[%emt 00:02:24]} 26. Bxc7 {[%clk 00:21:06]}
{[%emt 00:03:09]} Qg4 {[%clk 00:05:29]} {[%emt 00:00:17]} 27. Bf4+ {[%clk
00:19:04]} {[%emt 00:02:32]} Nc6 {[%clk 00:04:17]} {[%emt 00:01:43]} 28. bxc6
{[%clk 00:19:27]} {[%emt 00:00:07]} bxc6 {[%clk 00:04:44]} {[%emt 00:00:03]} 29.
Qxg4 {[%clk 00:18:17]} {[%emt 00:01:39]} hxg4 {[%clk 00:05:09]} {[%emt
00:00:06]} 30. Ne5 {[%clk 00:18:13]} {[%emt 00:00:32]} Bxe5 {[%clk 00:05:09]}
{[%emt 00:00:31]} 31. Bxe5 {[%clk 00:17:21]} {[%emt 00:01:23]} Rxh4 {[%clk
00:05:04]} {[%emt 00:00:35]} 32. Rxc6+ {[%clk 00:17:32]} {[%emt 00:00:19]} Kb7
{[%clk 00:05:19]} {[%emt 00:00:14]} 33. Rc4 {[%clk 00:17:23]} {[%emt 00:00:29]}
a5 {[%clk 00:04:46]} {[%emt 00:01:13]} 34. Rxd4 {[%clk 00:16:38]} {[%emt
00:01:14]} Rdh7 {[%clk 00:04:42]} {[%emt 00:00:35]} 35. f3 {[%clk 00:16:12]}
{[%emt 00:00:57]} gxf3 {[%clk 00:03:33]} {[%emt 00:01:40]} 36. Rxh4 {[%clk
00:16:29]} {[%emt 00:00:13]} Rxh4 {[%clk 00:03:57]} {[%emt 00:00:06]} 37. gxf3
{[%clk 00:16:50]} {[%emt 00:00:08]} Kc6 {[%clk 00:03:44]} {[%emt 00:00:44]} 38.
Kg2 {[%clk 00:17:00]} {[%emt 00:00:17]} Kd5 {[%clk 00:04:05]} {[%emt 00:00:11]}
39. Bg3 {[%clk 00:16:43]} {[%emt 00:00:46]} Ra4 {[%clk 00:03:35]} {[%emt
00:01:02]} 40. Re3 {[%clk 00:16:27]} {[%emt 00:00:44]} 1-0

[Event "NJSK 2023 Meisjes B"]
[Site "Almelo, Netherlands"]
[Date "2023.05.04"]
[Round "5.2"]
[White "Gergin, Isafara"]
[Black "Feng, Elysia"]
[Result "1-0"]
[TimeControl "90min/40moves + 30min + 30sec/move"]
[WhiteElo "1762"]
[BlackElo "1697"]

1. e4 {[%clk 01:30:59]} e5 {[%clk 01:30:56]} {[%emt 00:00:05]} 2. Nf3 {[%clk
01:31:25]} {[%emt 00:00:04]} Nc6 {[%clk 01:31:20]} {[%emt 00:00:06]} 3. d4
{[%clk 01:31:48]} {[%emt 00:00:07]} exd4 {[%clk 01:31:35]} {[%emt 00:00:14]} 4.
Nxd4 {[%clk 01:32:13]} {[%emt 00:00:06]} Bc5 {[%clk 01:31:57]} {[%emt
00:00:08]} 5. Be3 {[%clk 01:32:34]} {[%emt 00:00:08]} Qf6 {[%clk 01:32:19]}
{[%emt 00:00:08]} 6. c3 {[%clk 01:32:56]} {[%emt 00:00:08]} Nge7 {[%clk
01:32:18]} {[%emt 00:00:31]} 7. Bc4 {[%clk 01:33:12]} {[%emt 00:00:14]} O-O
{[%clk 01:24:44]} {[%emt 00:08:04]} 8. O-O {[%clk 01:32:07]} {[%emt 00:01:35]}
b6 {[%clk 01:20:53]} {[%emt 00:04:22]} 9. f4 {[%clk 01:22:25]} {[%emt
00:10:11]} d6 {[%clk 01:15:37]} {[%emt 00:05:45]} 10. Qd2 {[%clk 01:18:53]}
{[%emt 00:04:02]} h6 {[%clk 01:11:42]} {[%emt 00:04:26]} 11. Rf3 {[%clk
01:09:16]} {[%emt 00:10:07]} Bb7 {[%clk 01:05:09]} {[%emt 00:07:03]} 12. Rg3
{[%clk 01:07:20]} {[%emt 00:02:25]} Kh7 {[%clk 00:53:34]} {[%emt 00:12:06]} 13.
b4 {[%clk 00:55:15]} {[%emt 00:12:34]} Bxd4 {[%clk 00:53:45]} {[%emt 00:00:19]}
14. cxd4 {[%clk 00:53:44]} {[%emt 00:02:00]} Rad8 {[%clk 00:39:10]} {[%emt
00:15:06]} 15. b5 {[%clk 00:43:46]} {[%emt 00:10:28]} Na5 {[%clk 00:39:20]}
{[%emt 00:00:21]} 16. Bd3 {[%clk 00:43:39]} {[%emt 00:00:36]} Kh8 {[%clk
00:36:07]} {[%emt 00:03:42]} 17. Nc3 {[%clk 00:36:55]} {[%emt 00:07:15]} Ng8
{[%clk 00:25:22]} {[%emt 00:11:15]} 18. Rf1 {[%clk 00:30:21]} {[%emt 00:07:04]}
Qe7 {[%clk 00:19:17]} {[%emt 00:06:36]} 19. f5 {[%clk 00:27:30]} {[%emt
00:03:20]} f6 {[%clk 00:15:37]} {[%emt 00:04:11]} 20. Ne2 {[%clk 00:20:59]}
{[%emt 00:07:01]} Rf7 {[%clk 00:12:34]} {[%emt 00:03:33]} 21. Nf4 {[%clk
00:19:35]} {[%emt 00:01:54]} Qe8 {[%clk 00:09:50]} {[%emt 00:03:15]} 22. Ne6
{[%clk 00:15:50]} {[%emt 00:04:14]} Rdd7 {[%clk 00:09:01]} {[%emt 00:01:19]} 23.
d5 {[%clk 00:14:30]} {[%emt 00:01:50]} Qa8 {[%clk 00:07:52]} {[%emt 00:01:39]}
24. Qe2 {[%clk 00:08:55]} {[%emt 00:06:05]} Bc8 {[%clk 00:05:33]} {[%emt
00:02:49]} 25. Rf4 {[%clk 00:06:09]} {[%emt 00:03:15]} Nb7 {[%clk 00:03:55]}
{[%emt 00:02:08]} 26. Qh5 {[%clk 00:05:24]} {[%emt 00:01:15]} Nc5 {[%clk
00:02:49]} {[%emt 00:01:37]} 27. Be2 {[%clk 00:03:40]} {[%emt 00:02:13]} Rde7
{[%clk 00:00:52]} {[%emt 00:02:27]} 28. Rfg4 {[%clk 00:03:29]} {[%emt
00:00:41]} Nxe4 {[%clk 00:00:59]} {[%emt 00:00:24]} 29. Rxe4 {[%clk 00:02:12]}
{[%emt 00:01:47]} Qxd5 {[%clk 00:01:23]} {[%emt 00:00:06]} 30. Rd4 {[%clk
00:01:54]} {[%emt 00:00:48]} Qe5 {[%clk 00:01:04]} {[%emt 00:00:48]} 31. Bf4
{[%clk 00:30:58]} {[%emt 00:02:33]} 1-0